[Event "Norwegian Championship 2022"]
[Site "Kongsvinger, Norway"]
[Date "2022.07.08"]
[Round "1"]
[White " Østenstad, Berge"]
[Black "Hammer, Jon Ludvig"]
[Result "0-1"]
[Board "1"]
[TimeControl "40/5400+30:1800+30"]
[WhiteTitle "GM"]
[BlackTitle "GM"]
[WhiteFideId "1500058"]
[BlackFideId "1503707"]
[WhiteElo "2451"]
[BlackElo "2638"]

1. Nf3 {[%clk 01:30:54]} {[%emt 00:00:05]} g6 {[%clk 01:28:41]} {[%emt
00:02:20]} 2. e4 {[%clk 01:29:25]} {[%emt 00:01:58]} c5 {[%clk 01:27:13]}
{[%emt 00:01:59]} 3. c4 {[%clk 01:22:07]} {[%emt 00:07:48]} Bg7 {[%clk
01:27:21]} {[%emt 00:00:21]} 4. d4 {[%clk 01:22:31]} {[%emt 00:00:06]} cxd4
{[%clk 01:22:45]} {[%emt 00:05:07]} 5. Nxd4 {[%clk 01:22:32]} {[%emt 00:00:28]}
Nc6 {[%clk 01:23:00]} {[%emt 00:00:15]} 6. Be3 {[%clk 01:22:50]} {[%emt
00:00:13]} Nf6 {[%clk 01:22:59]} {[%emt 00:00:31]} 7. Nc3 {[%clk 01:23:10]}
{[%emt 00:00:09]} d6 {[%clk 01:22:15]} {[%emt 00:01:14]} 8. Be2 {[%clk
01:22:28]} {[%emt 00:01:12]} O-O {[%clk 01:21:46]} {[%emt 00:00:59]} 9. O-O
{[%clk 01:22:04]} {[%emt 00:00:54]} Bd7 {[%clk 01:21:46]} {[%emt 00:00:31]} 10.
Nc2 {[%clk 01:21:37]} {[%emt 00:00:56]} Rc8 {[%clk 01:13:39]} {[%emt 00:08:37]}
11. f3 {[%clk 01:10:26]} {[%emt 00:11:41]} Be6 {[%clk 01:01:04]} {[%emt
00:13:06]} 12. Qd2 {[%clk 00:52:46]} {[%emt 00:18:10]} Nd7 {[%clk 01:01:08]}
{[%emt 00:00:25]} 13. Rab1 {[%clk 00:40:27]} {[%emt 00:12:48]} f5 {[%clk
01:00:46]} {[%emt 00:00:52]} 14. exf5 {[%clk 00:37:44]} {[%emt 00:03:13]} Bxf5
{[%clk 00:55:10]} {[%emt 00:06:07]} 15. Rbc1 {[%clk 00:36:26]} {[%emt
00:01:47]} Qa5 {[%clk 00:48:30]} {[%emt 00:07:10]} 16. Na3 {[%clk 00:35:26]}
{[%emt 00:01:30]} Nc5 {[%clk 00:37:28]} {[%emt 00:11:33]} 17. Rfd1 {[%clk
00:34:41]} {[%emt 00:01:13]} a6 {[%clk 00:20:27]} {[%emt 00:17:32]} 18. Bf1
{[%clk 00:16:58]} {[%emt 00:18:13]} Rcd8 {[%clk 00:20:22]} {[%emt 00:00:35]} 19.
Kh1 {[%clk 00:14:46]} {[%emt 00:02:42]} Kh8 {[%clk 00:13:52]} {[%emt 00:07:01]}
20. Bh6 {[%clk 00:13:11]} {[%emt 00:02:04]} e5 {[%clk 00:11:12]} {[%emt
00:03:11]} 21. Be3 {[%clk 00:12:53]} {[%emt 00:00:47]} Nd4 {[%clk 00:08:03]}
{[%emt 00:03:38]} 22. Nd5 {[%clk 00:11:06]} {[%emt 00:02:17]} Qxd2 {[%clk
00:08:29]} {[%emt 00:00:05]} 23. Rxd2 {[%clk 00:11:20]} {[%emt 00:00:15]} h5
{[%clk 00:08:43]} {[%emt 00:00:16]} 24. b4 {[%clk 00:05:10]} {[%emt 00:06:40]}
Nce6 {[%clk 00:08:41]} {[%emt 00:00:32]} 25. Bd3 {[%clk 00:05:20]} {[%emt
00:00:19]} Kh7 {[%clk 00:09:00]} {[%emt 00:00:12]} 26. Nc2 {[%clk 00:04:50]}
{[%emt 00:00:59]} Rc8 {[%clk 00:03:22]} {[%emt 00:06:09]} 27. Bxd4 {[%clk
00:00:57]} {[%emt 00:04:24]} exd4 {[%clk 00:03:48]} {[%emt 00:00:04]} 28. Bxf5
{[%clk 00:01:17]} {[%emt 00:00:10]} gxf5 {[%clk 00:03:48]} {[%emt 00:00:30]} 29.
Re1 {[%clk 00:01:30]} {[%emt 00:00:16]} Rfe8 {[%clk 00:03:25]} {[%emt
00:00:54]} 30. Na3 {[%clk 00:01:36]} {[%emt 00:00:24]} Nf4 {[%clk 00:02:54]}
{[%emt 00:01:00]} 31. Rxe8 {[%clk 00:01:38]} {[%emt 00:00:29]} Rxe8 {[%clk
00:03:14]} {[%emt 00:00:10]} 32. Kg1 {[%clk 00:01:58]} {[%emt 00:00:10]} Nxd5
{[%clk 00:02:25]} {[%emt 00:01:19]} 33. cxd5 {[%clk 00:02:25]} {[%emt
00:00:03]} Bh6 {[%clk 00:02:22]} {[%emt 00:00:33]} 34. Rd1 {[%clk 00:02:31]}
{[%emt 00:00:24]} Rc8 {[%clk 00:02:15]} {[%emt 00:00:38]} 35. Kf1 {[%clk
00:00:40]} {[%emt 00:02:20]} Rc3 {[%clk 00:00:34]} {[%emt 00:02:11]} 36. Nb1
{[%clk 00:01:06]} {[%emt 00:00:04]} Rc2 {[%clk 00:00:55]} {[%emt 00:00:10]} 37.
Na3 {[%clk 00:01:31]} {[%emt 00:00:04]} Rc3 {[%clk 00:01:16]} {[%emt 00:00:08]}
38. Nb1 {[%clk 00:01:59]} {[%emt 00:00:03]} Rc2 {[%clk 00:01:38]} {[%emt
00:00:08]} 39. Na3 {[%clk 00:02:26]} {[%emt 00:00:02]} Rxa2 {[%clk 00:00:43]}
{[%emt 00:01:25]} 40. Nc4 {[%clk 00:32:52]} {[%emt 00:00:04]} Be3 {[%clk
00:30:42]} {[%emt 00:00:32]} 41. Nxd6 {[%clk 00:27:05]} {[%emt 00:06:16]} Kg6
{[%clk 00:31:01]} {[%emt 00:00:11]} 42. Nxb7 {[%clk 00:20:27]} {[%emt
00:07:08]} Kf6 {[%clk 00:30:25]} {[%emt 00:01:06]} 43. Na5 {[%clk 00:13:09]}
{[%emt 00:07:48]} Rf2+ {[%clk 00:07:40]} {[%emt 00:23:15]} 44. Ke1 {[%clk
00:12:15]} {[%emt 00:01:25]} Rxg2 {[%clk 00:08:09]} {[%emt 00:00:02]} 45. Nc4
{[%clk 00:09:39]} {[%emt 00:03:05]} Rxh2 {[%clk 00:08:36]} {[%emt 00:00:03]} 46.
Nxe3 {[%clk 00:09:48]} {[%emt 00:00:21]} dxe3 {[%clk 00:08:43]} {[%emt
00:00:23]} 47. Rd3 {[%clk 00:09:54]} {[%emt 00:00:24]} f4 {[%clk 00:06:04]}
{[%emt 00:03:09]} 48. Ra3 {[%clk 00:08:46]} {[%emt 00:01:38]} Ke5 {[%clk
00:06:19]} {[%emt 00:00:14]} 49. Rxa6 {[%clk 00:04:51]} {[%emt 00:04:26]} h4
{[%clk 00:05:57]} {[%emt 00:00:52]} 50. d6 {[%clk 00:01:44]} {[%emt 00:03:36]}
Ke6 {[%clk 00:06:22]} {[%emt 00:00:05]} 51. d7+ {[%clk 00:00:34]} {[%emt
00:01:41]} Kxd7 {[%clk 00:06:46]} {[%emt 00:00:06]} 52. Rh6 {[%clk 00:00:55]}
{[%emt 00:00:09]} h3 {[%clk 00:07:07]} {[%emt 00:00:09]} 53. b5 {[%clk
00:01:16]} {[%emt 00:00:09]} Rh1+ {[%clk 00:07:27]} {[%emt 00:00:09]} 54. Ke2
{[%clk 00:01:45]} {[%emt 00:00:01]} h2 {[%clk 00:07:47]} {[%emt 00:00:10]} 0-1

[Event "Norwegian Championship 2022"]
[Site "Kongsvinger, Norway"]
[Date "2022.07.08"]
[Round "1"]
[White "Agdestein, Simen"]
[Black "Kaasen, Tor Fredrik"]
[Result "1-0"]
[Board "2"]
[TimeControl "40/5400+30:1800+30"]
[WhiteTitle "GM"]
[BlackTitle "IM"]
[WhiteFideId "1500015"]
[BlackFideId "1516647"]
[WhiteElo "2559"]
[BlackElo "2433"]

1. c4 {[%clk 01:30:58]} {[%emt 00:00:02]} g6 {[%clk 01:29:36]} {[%emt
00:01:24]} 2. Nc3 {[%clk 01:27:28]} {[%emt 00:04:00]} c5 {[%clk 01:29:32]}
{[%emt 00:00:34]} 3. g3 {[%clk 01:24:52]} {[%emt 00:03:07]} Bg7 {[%clk
01:29:34]} {[%emt 00:00:28]} 4. Bg2 {[%clk 01:25:15]} {[%emt 00:00:07]} Nc6
{[%clk 01:29:30]} {[%emt 00:00:33]} 5. Nf3 {[%clk 01:22:45]} {[%emt 00:03:01]}
Nf6 {[%clk 01:21:45]} {[%emt 00:08:15]} 6. d4 {[%clk 01:21:56]} {[%emt
00:01:19]} d6 {[%clk 01:20:56]} {[%emt 00:01:19]} 7. d5 {[%clk 01:21:15]}
{[%emt 00:01:11]} Na5 {[%clk 01:20:34]} {[%emt 00:00:51]} 8. Nd2 {[%clk
01:20:27]} {[%emt 00:01:19]} O-O {[%clk 01:19:42]} {[%emt 00:01:21]} 9. O-O
{[%clk 01:18:57]} {[%emt 00:02:01]} e6 {[%clk 01:19:42]} {[%emt 00:00:27]} 10.
Rb1 {[%clk 01:17:56]} {[%emt 00:01:33]} exd5 {[%clk 01:15:34]} {[%emt
00:04:37]} 11. cxd5 {[%clk 01:17:50]} {[%emt 00:00:37]} Rb8 {[%clk 01:13:56]}
{[%emt 00:02:08]} 12. b4 {[%clk 01:10:55]} {[%emt 00:07:25]} cxb4 {[%clk
01:08:52]} {[%emt 00:05:34]} 13. Rxb4 {[%clk 01:10:42]} {[%emt 00:00:43]} Bf5
{[%clk 01:01:26]} {[%emt 00:07:56]} 14. Bb2 {[%clk 01:04:56]} {[%emt 00:06:16]}
a6 {[%clk 00:55:31]} {[%emt 00:06:25]} 15. Qa1 {[%clk 00:59:24]} {[%emt
00:06:03]} Re8 {[%clk 00:46:34]} {[%emt 00:09:25]} 16. a4 {[%clk 00:54:45]}
{[%emt 00:05:11]} Rc8 {[%clk 00:43:19]} {[%emt 00:03:45]} 17. h3 {[%clk
00:46:52]} {[%emt 00:08:23]} h5 {[%clk 00:38:02]} {[%emt 00:05:44]} 18. e4
{[%clk 00:44:14]} {[%emt 00:03:10]} Bd7 {[%clk 00:37:25]} {[%emt 00:01:06]} 19.
Ncb1 {[%clk 00:42:50]} {[%emt 00:01:55]} b5 {[%clk 00:26:53]} {[%emt 00:11:02]}
20. Na3 {[%clk 00:37:16]} {[%emt 00:06:05]} Nb7 {[%clk 00:21:43]} {[%emt
00:05:40]} 21. axb5 {[%clk 00:36:42]} {[%emt 00:01:04]} Qa5 {[%clk 00:19:12]}
{[%emt 00:03:01]} 22. bxa6 {[%clk 00:22:19]} {[%emt 00:14:53]} Nc5 {[%clk
00:10:40]} {[%emt 00:09:01]} 23. Bxf6 {[%clk 00:09:24]} {[%emt 00:13:26]} Bxf6
{[%clk 00:10:41]} {[%emt 00:00:29]} 24. Qxf6 {[%clk 00:09:50]} {[%emt
00:00:04]} Qxb4 {[%clk 00:09:23]} {[%emt 00:01:48]} 25. Nac4 {[%clk 00:09:46]}
{[%emt 00:00:33]} Nb3 {[%clk 00:03:16]} {[%emt 00:06:37]} 26. Nxd6 {[%clk
00:08:22]} {[%emt 00:01:54]} Nxd2 {[%clk 00:02:27]} {[%emt 00:01:19]} 27. Qxf7+
{[%clk 00:06:21]} {[%emt 00:02:30]} Kh8 {[%clk 00:02:56]} {[%emt 00:00:01]} 28.
Qxd7 {[%clk 00:05:29]} {[%emt 00:01:23]} Rf8 {[%clk 00:03:19]} {[%emt
00:00:07]} 29. Nxc8 {[%clk 00:05:06]} {[%emt 00:00:53]} Nxf1 {[%clk 00:02:16]}
{[%emt 00:01:33]} 30. Qe7 {[%clk 00:04:46]} {[%emt 00:00:49]} Qxe7 {[%clk
00:01:15]} {[%emt 00:01:31]} 31. Nxe7 {[%clk 00:05:10]} {[%emt 00:00:06]} Re8
{[%clk 00:01:42]} {[%emt 00:00:04]} 32. d6 {[%clk 00:04:50]} {[%emt 00:00:50]}
1-0

[Event "Norwegian Championship 2022"]
[Site "Kongsvinger, Norway"]
[Date "2022.07.08"]
[Round "1"]
[White "Djurhuus, Rune"]
[Black "Urkedal, Frode Olav Olsen"]
[Result "1/2-1/2"]
[Board "3"]
[TimeControl "40/5400+30:1800+30"]
[WhiteTitle "GM"]
[BlackTitle "GM"]
[WhiteFideId "1500082"]
[BlackFideId "1506102"]
[WhiteElo "2407"]
[BlackElo "2555"]

1. e4 {[%clk 01:18:16]} {[%emt 00:12:43]} e5 {[%clk 01:30:51]} {[%emt
00:00:09]} 2. Nf3 {[%clk 01:17:22]} {[%emt 00:01:25]} Nc6 {[%clk 01:31:14]}
{[%emt 00:00:06]} 3. Bb5 {[%clk 01:17:38]} {[%emt 00:00:14]} a6 {[%clk
01:31:34]} {[%emt 00:00:10]} 4. Ba4 {[%clk 01:17:46]} {[%emt 00:00:23]} Nf6
{[%clk 01:31:55]} {[%emt 00:00:09]} 5. O-O {[%clk 01:18:05]} {[%emt 00:00:12]}
Be7 {[%clk 01:32:01]} {[%emt 00:00:23]} 6. d4 {[%clk 01:18:14]} {[%emt
00:00:21]} exd4 {[%clk 01:31:28]} {[%emt 00:01:03]} 7. e5 {[%clk 01:18:39]}
{[%emt 00:00:06]} Ne4 {[%clk 01:30:36]} {[%emt 00:01:21]} 8. Nxd4 {[%clk
01:18:16]} {[%emt 00:00:54]} O-O {[%clk 01:28:19]} {[%emt 00:02:47]} 9. Nf5
{[%clk 01:18:40]} {[%emt 00:00:05]} d5 {[%clk 01:25:56]} {[%emt 00:02:52]} 10.
exd6 {[%clk 01:13:30]} {[%emt 00:05:41]} Bxf5 {[%clk 01:24:21]} {[%emt
00:02:04]} 11. dxe7 {[%clk 01:13:55]} {[%emt 00:00:06]} Nxe7 {[%clk 01:24:20]}
{[%emt 00:00:30]} 12. Bb3 {[%clk 01:10:45]} {[%emt 00:03:41]} Nc5 {[%clk
01:06:03]} {[%emt 00:18:47]} 13. Nc3 {[%clk 01:11:07]} {[%emt 00:00:07]} Nxb3
{[%clk 00:53:54]} {[%emt 00:12:39]} 14. Qxd8 {[%clk 01:11:03]} {[%emt
00:00:35]} Raxd8 {[%clk 00:52:12]} {[%emt 00:02:12]} 15. cxb3 {[%clk 01:11:26]}
{[%emt 00:00:07]} Nc6 {[%clk 00:45:35]} {[%emt 00:07:06]} 16. Bf4 {[%clk
01:09:52]} {[%emt 00:02:05]} Rd7 {[%clk 00:45:58]} {[%emt 00:00:08]} 17. Rfd1
{[%clk 01:07:10]} {[%emt 00:03:12]} Nd4 {[%clk 00:45:39]} {[%emt 00:00:49]} 18.
f3 {[%clk 01:04:20]} {[%emt 00:03:19]} Rfd8 {[%clk 00:43:09]} {[%emt 00:03:00]}
19. Kf2 {[%clk 01:04:31]} {[%emt 00:00:20]} f6 {[%clk 00:41:02]} {[%emt
00:02:37]} 20. g4 {[%clk 00:59:40]} {[%emt 00:05:21]} Bc2 {[%clk 00:38:21]}
{[%emt 00:03:10]} 21. Rd2 {[%clk 00:57:25]} {[%emt 00:02:44]} Ne6 {[%clk
00:37:25]} {[%emt 00:01:27]} 22. Rxd7 {[%clk 00:56:25]} {[%emt 00:01:30]} Rxd7
{[%clk 00:37:49]} {[%emt 00:00:06]} 23. Be3 {[%clk 00:56:47]} {[%emt 00:00:08]}
f5 {[%clk 00:34:42]} {[%emt 00:03:36]} 24. Rc1 {[%clk 00:52:32]} {[%emt
00:04:46]} Bd3 {[%clk 00:33:42]} {[%emt 00:01:30]} 25. Kg3 {[%clk 00:42:40]}
{[%emt 00:10:21]} g5 {[%clk 00:30:39]} {[%emt 00:03:33]} 26. gxf5 {[%clk
00:43:01]} {[%emt 00:00:09]} Bxf5 {[%clk 00:31:02]} {[%emt 00:00:07]} 27. Rd1
{[%clk 00:42:57]} {[%emt 00:00:34]} Rxd1 {[%clk 00:29:19]} {[%emt 00:02:12]} 28.
Nxd1 {[%clk 00:43:21]} {[%emt 00:00:07]} Kf7 {[%clk 00:27:27]} {[%emt
00:02:22]} 29. Nc3 {[%clk 00:43:41]} {[%emt 00:00:10]} Kf6 {[%clk 00:26:58]}
{[%emt 00:00:59]} 30. b4 {[%clk 00:36:44]} {[%emt 00:07:27]} Bd3 {[%clk
00:24:41]} {[%emt 00:02:46]} 31. Kg4 {[%clk 00:26:43]} {[%emt 00:10:30]} Kg6
{[%clk 00:23:21]} {[%emt 00:01:52]} 32. Kg3 {[%clk 00:20:33]} {[%emt 00:06:40]}
Kf5 {[%clk 00:22:05]} {[%emt 00:01:46]} 33. a3 {[%clk 00:20:56]} {[%emt
00:00:07]} Bc4 {[%clk 00:15:03]} {[%emt 00:07:31]} 34. Bd2 {[%clk 00:18:44]}
{[%emt 00:02:42]} b6 {[%clk 00:10:40]} {[%emt 00:04:54]} 35. Nd1 {[%clk
00:18:11]} {[%emt 00:01:03]} Bb3 {[%clk 00:11:08]} {[%emt 00:00:02]} 36. Ne3+
{[%clk 00:18:21]} {[%emt 00:00:20]} Kg6 {[%clk 00:11:31]} {[%emt 00:00:06]} 37.
Bc3 {[%clk 00:18:17]} {[%emt 00:00:35]} b5 {[%clk 00:08:58]} {[%emt 00:03:03]}
38. Ng4 {[%clk 00:12:53]} {[%emt 00:05:54]} Bd5 {[%clk 00:02:36]} {[%emt
00:06:51]} 39. Ne5+ {[%clk 00:12:41]} {[%emt 00:00:43]} Kf5 {[%clk 00:02:59]}
{[%emt 00:00:07]} 40. Nd3 {[%clk 00:43:00]} {[%emt 00:00:11]} c6 {[%clk
00:31:43]} {[%emt 00:01:47]} 41. Nc5 {[%clk 00:42:36]} {[%emt 00:00:53]} Nxc5
{[%clk 00:22:05]} {[%emt 00:10:09]} 42. bxc5 {[%clk 00:42:52]} {[%emt
00:00:14]} Bb3 {[%clk 00:22:28]} {[%emt 00:00:06]} 43. Bd2 {[%clk 00:42:08]}
{[%emt 00:01:14]} h5 {[%clk 00:22:23]} {[%emt 00:00:35]} 44. h3 {[%clk
00:41:46]} {[%emt 00:00:51]} Bd1 {[%clk 00:22:26]} {[%emt 00:00:26]} 45. Kf2
{[%clk 00:41:40]} {[%emt 00:00:35]} Bb3 {[%clk 00:22:17]} {[%emt 00:00:42]} 46.
Kg3 {[%clk 00:41:59]} {[%emt 00:00:10]} Bc4 {[%clk 00:22:02]} {[%emt 00:00:45]}
47. Be3 {[%clk 00:41:46]} {[%emt 00:00:43]} a5 {[%clk 00:21:42]} {[%emt
00:00:50]} 48. Bd2 {[%clk 00:41:10]} {[%emt 00:01:06]} a4 {[%clk 00:22:07]}
{[%emt 00:00:05]} 49. Be3 {[%clk 00:41:36]} {[%emt 00:00:05]} Bf1 {[%clk
00:22:18]} {[%emt 00:00:18]} 50. Bd2 {[%clk 00:41:30]} {[%emt 00:00:36]} Be2
{[%clk 00:20:57]} {[%emt 00:01:51]} 51. Kf2 {[%clk 00:41:54]} {[%emt 00:00:05]}
Bd1 {[%clk 00:21:22]} {[%emt 00:00:05]} 52. Kg3 {[%clk 00:42:17]} {[%emt
00:00:08]} Bb3 {[%clk 00:20:33]} {[%emt 00:01:19]} 1/2-1/2

[Event "Norwegian Championship 2022"]
[Site "Kongsvinger, Norway"]
[Date "2022.07.08"]
[Round "1"]
[White "Hauge, Lars Oskar"]
[Black "Tallaksen, Levi André"]
[Result "1-0"]
[TimeControl "40/5400+30:1800+30"]
[Board "4"]
[WhiteTitle "GM"]
[BlackTitle "FM"]
[WhiteFideId "1509276"]
[BlackFideId "1505785"]
[WhiteElo "2526"]
[BlackElo "2341"]

1. e4 {[%clk 01:30:59]} {[%emt 00:00:01]} e5 {[%clk 01:30:54]} {[%emt
00:00:07]} 2. Nf3 {[%clk 01:31:26]} {[%emt 00:00:03]} Nc6 {[%clk 01:31:17]}
{[%emt 00:00:07]} 3. Bb5 {[%clk 01:31:46]} {[%emt 00:00:10]} a6 {[%clk
01:31:38]} {[%emt 00:00:09]} 4. Ba4 {[%clk 01:32:12]} {[%emt 00:00:04]} Nf6
{[%clk 01:32:01]} {[%emt 00:00:06]} 5. O-O {[%clk 01:31:23]} {[%emt 00:01:20]}
Be7 {[%clk 01:32:22]} {[%emt 00:00:09]} 6. d3 {[%clk 01:31:47]} {[%emt
00:00:07]} b5 {[%clk 01:31:53]} {[%emt 00:00:59]} 7. Bb3 {[%clk 01:31:23]}
{[%emt 00:00:54]} d6 {[%clk 01:31:44]} {[%emt 00:00:38]} 8. Bd2 {[%clk
01:31:23]} {[%emt 00:00:30]} O-O {[%clk 01:30:43]} {[%emt 00:01:31]} 9. h3
{[%clk 01:29:04]} {[%emt 00:02:49]} Be6 {[%clk 01:29:51]} {[%emt 00:01:22]} 10.
Nc3 {[%clk 01:28:52]} {[%emt 00:00:42]} d5 {[%clk 01:24:16]} {[%emt 00:06:04]}
11. exd5 {[%clk 01:16:38]} {[%emt 00:12:46]} Nxd5 {[%clk 01:24:38]} {[%emt
00:00:08]} 12. Re1 {[%clk 01:17:06]} {[%emt 00:00:02]} Bf6 {[%clk 01:24:46]}
{[%emt 00:00:21]} 13. Ne4 {[%clk 01:16:45]} {[%emt 00:00:51]} Re8 {[%clk
01:19:36]} {[%emt 00:05:40]} 14. Nfg5 {[%clk 01:06:54]} {[%emt 00:10:22]} Bf5
{[%clk 01:04:55]} {[%emt 00:15:11]} 15. Nxf6+ {[%clk 01:04:02]} {[%emt
00:03:22]} gxf6 {[%clk 01:05:16]} {[%emt 00:00:08]} 16. Ne4 {[%clk 01:04:22]}
{[%emt 00:00:09]} Nb6 {[%clk 01:02:43]} {[%emt 00:03:03]} 17. Qh5 {[%clk
00:59:58]} {[%emt 00:04:55]} Bg6 {[%clk 01:00:55]} {[%emt 00:02:18]} 18. Qh4
{[%clk 00:59:21]} {[%emt 00:01:06]} Nd7 {[%clk 00:51:46]} {[%emt 00:09:39]} 19.
Bd5 {[%clk 00:57:57]} {[%emt 00:01:54]} Nd4 {[%clk 00:51:28]} {[%emt 00:00:48]}
20. Bxa8 {[%clk 00:57:26]} {[%emt 00:01:02]} Qxa8 {[%clk 00:51:54]} {[%emt
00:00:04]} 21. Rac1 {[%clk 00:50:58]} {[%emt 00:06:56]} Qc6 {[%clk 00:51:34]}
{[%emt 00:00:51]} 22. Ng3 {[%clk 00:46:25]} {[%emt 00:05:03]} Kh8 {[%clk
00:41:23]} {[%emt 00:10:41]} 23. c3 {[%clk 00:39:12]} {[%emt 00:07:43]} Ne6
{[%clk 00:36:21]} {[%emt 00:05:32]} 24. d4 {[%clk 00:39:16]} {[%emt 00:00:26]}
Qd5 {[%clk 00:35:57]} {[%emt 00:00:54]} 25. Bh6 {[%clk 00:32:37]} {[%emt
00:07:09]} Qxa2 {[%clk 00:32:11]} {[%emt 00:04:16]} 26. dxe5 {[%clk 00:32:54]}
{[%emt 00:00:13]} Qxb2 {[%clk 00:32:23]} {[%emt 00:00:18]} 27. Red1 {[%clk
00:22:59]} {[%emt 00:10:24]} Ndc5 {[%clk 00:28:42]} {[%emt 00:04:12]} 28. Qxf6+
{[%clk 00:20:30]} {[%emt 00:02:59]} Kg8 {[%clk 00:29:07]} {[%emt 00:00:04]} 29.
Rd5 {[%clk 00:15:22]} {[%emt 00:05:38]} Nd3 {[%clk 00:28:28]} {[%emt 00:01:09]}
30. Rd1 {[%clk 00:14:33]} {[%emt 00:01:18]} Qc2 {[%clk 00:27:29]} {[%emt
00:01:29]} 31. Rd2 {[%clk 00:13:16]} {[%emt 00:01:49]} Qxc3 {[%clk 00:25:37]}
{[%emt 00:02:22]} 32. Kh2 {[%clk 00:13:16]} {[%emt 00:00:30]} b4 {[%clk
00:15:54]} {[%emt 00:10:13]} 33. Nf5 {[%clk 00:09:46]} {[%emt 00:04:00]} Bxf5
{[%clk 00:15:49]} {[%emt 00:00:36]} 34. Qxf5 {[%clk 00:10:08]} {[%emt
00:00:08]} Ndc5 {[%clk 00:16:04]} {[%emt 00:00:15]} 35. Rd8 {[%clk 00:09:20]}
{[%emt 00:01:17]} Ng7 {[%clk 00:15:14]} {[%emt 00:01:20]} 36. Rxe8+ {[%clk
00:08:58]} {[%emt 00:00:52]} Nxe8 {[%clk 00:15:40]} {[%emt 00:00:04]} 37. Qg5+
{[%clk 00:09:04]} {[%emt 00:00:24]} Kh8 {[%clk 00:16:06]} {[%emt 00:00:04]} 38.
Qg7+ {[%clk 00:09:25]} {[%emt 00:00:09]} Nxg7 {[%clk 00:16:33]} {[%emt
00:00:03]} 39. Rd8+ {[%clk 00:09:51]} {[%emt 00:00:03]} Ne8 {[%clk 00:17:00]}
{[%emt 00:00:04]} 40. Rxe8# {[%emt 00:00:05]} 1-0